fUSD/lending_fUSD_20240217
["ID","MTS","AMOUNT","RATE_DAILY","PERIOD"]
[314325930,1708183848095,-500.0,0.00055068,120]
[314325931,1708183848104,-500.0,0.00055068,120]
[314325932,1708183848113,-518.83,0.00055068,120]
[314325933,1708183848122,-500.0,0.00055068,120]
[314325934,1708183848131,-500.0,0.00055068,120]
[314325935,1708183848140,-500.0,0.00055068,120]
[314325936,1708183848149,-4046.17,0.00055068,120]
[314325937,1708183848158,-500.0,0.00055068,30]
[314325938,1708183848168,-500.0,0.00055068,120]
[314325939,1708183848177,-500.0,0.00055068,2]
[314325940,1708183848186,-500.0,0.00055068,120]
[314325941,1708183848196,-500.0,0.00055068,120]
[314325942,1708183848205,-500.0,0.00055068,120]
[314325943,1708183848214,-1979.79,0.00055068,120]
[314325944,1708183848224,-500.0,0.00055068,120]
[314325945,1708183848233,-500.0,0.00055068,120]
[314325946,1708183848246,-500.0,0.00055068,120]
[314325947,1708183848255,-527.55136183,0.00055068,120]
[314325948,1708183848264,-500.0,0.00055068,120]
[314325949,1708183848273,-500.0,0.00055068,120]
[314325950,1708183848283,-500.0,0.00055068,120]
[314325951,1708183848292,-500.0,0.00055068,120]
[314325952,1708183848301,-500.0,0.00055068,120]
[314325953,1708183848310,-526.781292,0.00055068,120]
[314325954,1708183848319,-500.0,0.00055068,120]
[314325955,1708183848328,-589.67267449,0.00055068,120]
[314325956,1708183848337,-500.0,0.00055068,120]
[314325957,1708183848346,-500.0,0.00055068,120]
[314325958,1708183848355,-500.0,0.00055068,120]
[314325959,1708183848364,-500.0,0.00055068,120]
[314325960,1708183848374,-500.0,0.00055068,120]
[314325961,1708183848385,-500.0,0.00055068,120]
[314325962,1708183848394,-1000.0,0.00055068,7]
[314325963,1708183848404,-500.0,0.00055068,120]
[314325964,1708183848414,-793.44,0.00055068,120]
[314325965,1708183848422,-522.55,0.00055068,120]
[314325966,1708183848432,-500.0,0.00055068,120]
[314325967,1708183848442,-500.0,0.00055068,120]
[314325968,1708183848450,-500.0,0.00055068,120]
[314325969,1708183848459,-500.0,0.00055068,120]
[314325970,1708183848468,-500.0,0.00055068,120]
[314325971,1708183848478,-500.0,0.00055068,120]
[314325972,1708183848490,-500.0,0.00055068,120]
[314325973,1708183848500,-500.0,0.00055068,120]
[314325974,1708183848509,-500.0,0.00055068,120]
[314325975,1708183848518,-500.0,0.00055068,120]
[314325976,1708183848527,-500.0,0.00055068,120]
[314325977,1708183848536,-6223.53,0.00055068,120]
[314325978,1708183848545,-500.0,0.00055068,120]
[314325979,1708183848555,-664.9,0.00055068,120]
[314325980,1708183848564,-500.0,0.00055068,120]
[314325981,1708183848573,-500.0,0.00055068,120]
[314325982,1708183848582,-508.38441291,0.00055068,120]
[314325983,1708183848591,-500.0,0.00055068,120]
[314325984,1708183848600,-500.0,0.00055068,120]
[314325985,1708183848610,-500.0,0.00055068,120]
[314325986,1708183848619,-500.0,0.00055068,120]
[314325987,1708183848628,-500.0,0.00055068,120]
[314325988,1708183848637,-500.0,0.00055068,120]
[314325989,1708183848647,-500.0,0.00055068,120]
[314325990,1708183848656,-500.0,0.00055068,120]
[314325991,1708183848665,-500.0,0.00055068,120]
[314325992,1708183848676,-500.0,0.00055068,120]
[314325993,1708183848685,-500.0,0.00055068,120]
[314325994,1708183848694,-500.0,0.00055068,120]
[314325995,1708183848706,-1228.37,0.00055068,120]
[314325996,1708183848718,-627.62,0.00055068,120]
[314325997,1708183848731,-1324.9,0.00055068,120]
[314325998,1708183848744,-338.81638599,0.00055068,120]
[314325999,1708183848755,-500.0,0.00055068,120]
[314326000,1708183848766,-500.0,0.00055068,120]
[314326001,1708183848778,-300.0,0.00055068,120]
[314326002,1708183848788,-500.0,0.00055068,120]
[314326003,1708183848798,-500.0,0.00055068,120]
[314326004,1708183848808,-500.0,0.00055068,120]
[314326005,1708183848819,-205.91936027,0.00055068,120]
[314326006,1708183848830,-500.0,0.00055068,120]
[314326007,1708183848841,-500.0,0.00055068,120]
[314326008,1708183848852,-500.0,0.00055068,120]
[314326009,1708183848862,-515.05,0.00055068,120]
[314326010,1708183848874,-500.0,0.00055068,120]
[314326011,1708183848885,-500.0,0.00055068,120]
[314326012,1708183848897,-731.88,0.00055068,120]
[314326013,1708183848908,-500.0,0.00055068,120]
[314326014,1708183848919,-500.0,0.00055068,120]
[314326015,1708183848930,-500.0,0.00055068,120]
[314326016,1708183848941,-17257.27,0.00055068,120]
[314326017,1708183848951,-520.3122894,0.00055068,120]
[314326018,1708183848961,-500.0,0.00055068,120]
[314326019,1708183848971,-500.0,0.00055068,120]
[314326020,1708183848981,-500.0,0.00055068,120]
[314326021,1708183848993,-500.0,0.00055068,120]
[314326022,1708183849004,-558.07570171,0.00055068,120]
[314326023,1708183849015,-500.0,0.00055068,120]
[314326024,1708183849026,-500.0,0.00055068,120]
[314326025,1708183849036,-500.0,0.00055068,120]
[314326026,1708183849047,-311.40279987,0.00055068,120]
[314326027,1708183849057,-758.91,0.00055068,120]
[314326028,1708183849068,-532.99110301,0.00055068,120]
[314326029,1708183849079,-500.0,0.00055068,120]
[314326030,1708183849090,-1426.28,0.00055068,120]
[314326031,1708183849101,-500.0,0.00055068,2]
[314326032,1708183849112,-500.0,0.00055068,120]
[314326033,1708183849122,-500.0,0.00055068,2]
[314326034,1708183849132,-581.04406943,0.00055068,120]
[314326035,1708183849141,-500.0,0.00055068,120]
[314326036,1708183849151,-160.0,0.00055068,120]
[314326037,1708183849163,-150.0,0.00055083,14]
[314326038,1708183849176,-150.0,0.00055086,14]
[314326039,1708183849187,-150.0,0.00055092,14]
[314326040,1708183849198,-150.0,0.000551,14]
[314326041,1708183849209,-5000.0,0.000551,111]
[314326042,1708183849221,-150.0,0.00055108,14]
[314326043,1708183849232,-150.0,0.00055114,14]
[314326044,1708183849244,-150.0,0.0005512,60]
[314326045,1708183849256,-153.11126024,0.00055124,64]
[314326046,1708183849268,-150.0,0.00055128,14]
[314326047,1708183849278,-150.0,0.00055134,14]
[314326048,1708183849289,-150.0,0.00055139,14]
[314326049,1708183849300,-150.0,0.00055143,14]
[314326050,1708183849311,-150.0,0.00055152,14]
[314326051,1708183849323,-150.0,0.00055153,14]
[314326052,1708183849335,-150.0,0.00055157,14]
[314326053,1708183849345,-200.0,0.00055165,120]
[314326054,1708183849356,-500.0,0.00055165,120]
[314326055,1708183849368,-200.0,0.00055165,120]
[314326056,1708183849380,-965.29337013,0.00055168,2]
[314326057,1708183849391,-150.0,0.00055175,14]
[314326058,1708183849404,-150.0,0.00055181,14]
[314326059,1708183849416,-150.0,0.00055184,14]
[314326060,1708183849426,-150.0,0.00055187,14]
[314326061,1708183849438,-123.82552043,0.0005519,14]
[314326062,1708183849465,-26.17447957,0.0005519,14]
[314326063,1708183849475,-150.0,0.00055195,14]
[314326064,1708183849488,-200.0,0.000552,31]
[314326065,1708183849500,-5000.0,0.000552,111]
[314326066,1708183849511,-150.0,0.00055201,14]
[314326067,1708183849521,-150.0,0.00055207,14]
[314326068,1708183849531,-150.0,0.00055213,14]
[314326069,1708183849542,-150.0,0.0005522,14]
[314326070,1708183849553,-150.0,0.0005524,14]
[314326071,1708183849565,-150.0,0.00055244,14]
[314326072,1708183849575,-150.0,0.00055263,14]
[314326073,1708183849586,-462.6292584,0.00055264,2]
[314326074,1708183849598,-529.83981308,0.00055269,2]
[314326075,1708183849609,-150.0,0.00055273,14]
[314326076,1708183849620,-150.0,0.00055273,14]
[314326077,1708183849630,-150.0,0.00055273,14]
[314326078,1708183849640,-300.0,0.00055281,14]
[314326079,1708183849650,-150.0,0.00055289,14]
[314326080,1708183849660,-570.0,0.00055292,12]
[314326081,1708183849669,-570.0,0.00055292,12]
[314326082,1708183849679,-570.0,0.00055292,12]
[314326083,1708183849688,-150.0,0.00055293,14]
[314326084,1708183849699,-150.0,0.00055293,14]
[314326085,1708183849711,-800.0,0.00055294,120]
[314326086,1708183849722,-150.0,0.00055298,14]
[314326087,1708183849734,-150.0,0.00055299,14]
[314326088,1708183849745,-5000.0,0.000553,111]
[314326089,1708183849756,-159.879999,0.00055301,7]
[314326090,1708183849766,-150.0,0.00055303,14]
[314326091,1708183849776,-150.0,0.00055308,14]
[314326092,1708183849786,-150.0,0.00055315,14]
[314326093,1708183849797,-150.0,0.00055324,14]
[314326094,1708183849808,-150.0,0.00055326,14]
[314326095,1708183849819,-150.0,0.00055328,14]
[314326096,1708183849830,-150.0,0.00055337,14]
[314326097,1708183849840,-150.0,0.00055339,14]
[314326098,1708183849851,-150.0,0.0005534,14]
[314326099,1708183849862,-570.00002319,0.00055342,120]
[314326100,1708183849875,-500.0,0.00055342,120]
[314326101,1708183849885,-500.0,0.00055342,120]
[314326102,1708183849896,-539.67913996,0.00055342,120]
[314326103,1708183849907,-594.55471162,0.00055342,120]
[314326104,1708183849917,-500.0,0.00055342,120]
[314326105,1708183849929,-194.55247385,0.00055342,120]
[314326106,1708183849939,-500.0,0.00055342,120]
[314326107,1708183849949,-500.0,0.00055342,120]
[314326108,1708183849960,-500.0,0.00055342,120]
[314326109,1708183849971,-500.0,0.00055342,120]
[314326110,1708183849980,-500.0,0.00055342,120]
[314326111,1708183849992,-450.24619988,0.00055342,120]
[314326112,1708183850002,-500.0,0.00055342,120]
[314326113,1708183850012,-500.0,0.00055342,120]
[314326114,1708183850023,-519.69891865,0.00055342,7]
[314326115,1708183850033,-590.05569813,0.00055342,120]
[314326116,1708183850043,-511.99391969,0.00055342,120]
[314326117,1708183850054,-500.0,0.00055342,120]
[314326118,1708183850064,-500.0,0.00055342,120]
[314326119,1708183850074,-555.69911253,0.00055342,120]
[314326120,1708183850085,-500.0,0.00055342,120]
[314326121,1708183850095,-500.0,0.00055342,120]
[314326122,1708183850106,-500.0,0.00055342,120]
[314326123,1708183850116,-500.0,0.00055342,120]
[314326124,1708183850126,-500.0,0.00055342,120]
[314326125,1708183850136,-500.0,0.00055342,120]
[314326126,1708183850147,-500.0,0.00055342,120]
[314326127,1708183850156,-500.0,0.00055342,120]
[314326128,1708183850166,-816.18,0.00055342,120]
[314326129,1708183850176,-500.0,0.00055342,120]
[314326130,1708183850186,-500.0,0.00055342,120]
[314326131,1708183850195,-500.0,0.00055342,120]
[314326132,1708183850206,-3767.68,0.00055342,120]
[314326133,1708183850217,-325.65756155,0.00055342,120]
[314326134,1708183850228,-500.0,0.00055342,120]
[314326135,1708183850239,-500.0,0.00055342,120]
[314326136,1708183850249,-500.0,0.00055342,120]
[314326137,1708183850260,-251.41345396,0.00055342,120]
[314326138,1708183850270,-500.0,0.00055342,120]
[314326139,1708183850280,-500.0,0.00055342,120]
[314326140,1708183850290,-500.0,0.00055342,120]
[314326141,1708183850301,-500.0,0.00055342,120]
[314326142,1708183850312,-500.0,0.00055342,120]
[314326143,1708183850323,-584.73,0.00055342,120]
[314326144,1708183850333,-500.0,0.00055342,120]
[314326145,1708183850343,-500.0,0.00055342,120]
[314326146,1708183850354,-500.0,0.00055342,120]
[314326147,1708183850366,-500.0,0.00055342,120]
[314326148,1708183850376,-778.99,0.00055342,120]
[314326149,1708183850386,-500.0,0.00055342,120]
[314326150,1708183850396,-500.0,0.00055342,7]
[314326151,1708183850410,-500.0,0.00055342,120]
[314326152,1708183850421,-500.0,0.00055342,120]
[314326153,1708183850431,-500.0,0.00055342,120]
[314326154,1708183850441,-500.0,0.00055342,120]
[314326155,1708183850451,-500.0,0.00055342,120]
[314326156,1708183850461,-500.0,0.00055342,120]
[314326157,1708183850472,-500.0,0.00055342,120]
[314326158,1708183850483,-500.0,0.00055342,120]
[314326159,1708183850494,-500.0,0.00055342,120]
[314326160,1708183850504,-500.0,0.00055342,120]
[314326161,1708183850514,-500.0,0.00055342,120]
[314326162,1708183850524,-500.0,0.00055342,120]
[314326163,1708183850534,-500.0,0.00055342,14]
[314326164,1708183850544,-500.0,0.00055342,120]
[314326165,1708183850554,-500.0,0.00055342,120]
[314326166,1708183850564,-500.0,0.00055342,120]
[314326167,1708183850574,-500.0,0.00055342,120]
[314326168,1708183850583,-500.0,0.00055342,120]
[314326169,1708183850593,-500.0,0.00055342,120]
[314326170,1708183850603,-2872.0,0.00055342,120]
[314326171,1708183850613,-500.0,0.00055342,120]
[314326172,1708183850623,-500.0,0.00055342,120]
[314326173,1708183850633,-500.0,0.00055342,120]
[314326174,1708183850643,-4697.2,0.00055342,120]
[314326175,1708183850653,-500.0,0.00055342,120]
[314326176,1708183850664,-500.0,0.00055342,120]
[314326177,1708183850674,-924.92,0.00055342,120]
[314326178,1708183850684,-500.0,0.00055342,120]
[314326179,1708183850694,-500.0,0.00055342,120]
[314326180,1708183850704,-652.23,0.00055342,120]
[314326181,1708183850714,-500.0,0.00055342,120]
[314326182,1708183850725,-500.0,0.00055342,120]
[314326183,1708183850735,-500.0,0.00055342,120]
[314326184,1708183850747,-500.0,0.00055342,120]
[314326185,1708183850757,-500.0,0.00055342,120]
[314326186,1708183850766,-2037.46,0.00055342,120]
[314326187,1708183850776,-500.0,0.00055342,120]
[314326188,1708183850785,-500.0,0.00055342,120]
[314326189,1708183850794,-500.0,0.00055342,120]
[314326190,1708183850803,-500.0,0.00055342,120]
[314326191,1708183850813,-500.0,0.00055342,120]
[314326192,1708183850823,-500.0,0.00055342,120]
[314326193,1708183850833,-500.0,0.00055342,120]
[314326194,1708183850842,-500.0,0.00055342,120]
[314326195,1708183850851,-500.0,0.00055342,120]
[314326196,1708183850860,-518.83,0.00055342,120]
[314326197,1708183850870,-500.0,0.00055342,120]
[314326198,1708183850879,-429.60795498,0.00055342,120]
[314326199,1708183850889,-500.0,0.00055342,120]
[314326200,1708183850899,-4046.17,0.00055342,120]
[314326201,1708183850908,-500.0,0.00055342,30]
[314326202,1708183850918,-500.0,0.00055342,120]
[314326203,1708183850927,-500.0,0.00055342,2]
[314326204,1708183850937,-500.0,0.00055342,120]
[314326205,1708183850947,-500.0,0.00055342,120]
[314326206,1708183850956,-500.0,0.00055342,120]
[314326207,1708183850966,-1979.79,0.00055342,120]
[314326208,1708183850975,-500.0,0.00055342,120]
[314326209,1708183850985,-500.0,0.00055342,120]
[314326210,1708183850995,-500.0,0.00055342,120]
[314326211,1708183851005,-500.0,0.00055342,120]
[314326212,1708183851014,-500.0,0.00055342,120]
[314326213,1708183851023,-500.0,0.00055342,120]
[314326214,1708183851033,-500.0,0.00055342,120]
[314326215,1708183851043,-500.0,0.00055342,120]
[314326216,1708183851051,-500.0,0.00055342,120]
[314326217,1708183851060,-500.0,0.00055342,120]
[314326218,1708183851070,-376.72688887,0.00055342,120]
[314326219,1708183851079,-500.0,0.00055342,120]
[314326220,1708183851089,-500.0,0.00055342,120]
[314326221,1708183851098,-500.0,0.00055342,120]
[314326222,1708183851107,-500.0,0.00055342,120]
[314326223,1708183851116,-1000.0,0.00055342,7]
[314326224,1708183851126,-500.0,0.00055342,120]
[314326225,1708183851135,-793.44,0.00055342,120]
[314326226,1708183851145,-522.55,0.00055342,120]
[314326227,1708183851154,-500.0,0.00055342,120]
[314326228,1708183851163,-500.0,0.00055342,120]
[314326229,1708183851172,-500.0,0.00055342,120]
[314326230,1708183851181,-500.0,0.00055342,120]
[314326231,1708183851190,-500.0,0.00055342,120]
[314326232,1708183851200,-500.0,0.00055342,120]
[314326233,1708183851209,-500.0,0.00055342,120]
[314326234,1708183851218,-500.0,0.00055342,120]
[314326235,1708183851228,-500.0,0.00055342,120]
[314326236,1708183851238,-500.0,0.00055342,120]
[314326237,1708183851248,-627.86918018,0.00055342,120]
[314326238,1708183851258,-6223.53,0.00055342,120]
[314326239,1708183851267,-500.0,0.00055342,120]
[314326240,1708183851276,-664.9,0.00055342,120]
[314326241,1708183851287,-477.0009455,0.00055342,120]
[314326242,1708183851297,-500.0,0.00055342,120]
[314326243,1708183851307,-526.17916288,0.00055342,120]
[314326244,1708183851591,-500.0,0.00055342,120]
[314326245,1708183851606,-500.0,0.00055342,120]
[314326246,1708183851621,-500.0,0.00055342,120]
[314326247,1708183851631,-500.0,0.00055342,120]
[314326248,1708183851641,-500.0,0.00055342,120]
[314326249,1708183851650,-500.0,0.00055342,120]
[314326250,1708183851660,-526.79084701,0.00055342,120]
[314326251,1708183851669,-500.0,0.00055342,120]
[314326252,1708183851678,-500.0,0.00055342,120]
[314326253,1708183851687,-500.0,0.00055342,120]
[314326254,1708183851696,-1228.37,0.00055342,120]
[314326255,1708183851705,-627.62,0.00055342,120]
[314326256,1708183851714,-1324.9,0.00055342,120]
[314326257,1708183851723,-500.0,0.00055342,120]
[314326258,1708183851733,-413.60222943,0.00055342,120]
[314326259,1708183851743,-300.0,0.00055342,120]
[314326260,1708183851752,-500.0,0.00055342,120]
[314326261,1708183851761,-500.0,0.00055342,120]
[314326262,1708183851771,-500.0,0.00055342,120]
[314326263,1708183851781,-500.0,0.00055342,120]
[314326264,1708183851790,-500.0,0.00055342,120]
[314326265,1708183851799,-500.0,0.00055342,120]
[314326266,1708183851809,-515.05,0.00055342,120]
[314326267,1708183851818,-500.0,0.00055342,120]
[314326268,1708183851827,-500.0,0.00055342,120]
[314326269,1708183851837,-731.88,0.00055342,120]
[314326270,1708183851846,-500.0,0.00055342,120]
[314326271,1708183851855,-500.0,0.00055342,120]
[314326272,1708183851864,-500.0,0.00055342,120]
[314326273,1708183851873,-17257.27,0.00055342,120]
[314326274,1708183851883,-500.0,0.00055342,120]
[314326275,1708183851892,-500.0,0.00055342,120]
[314326276,1708183851902,-500.0,0.00055342,120]
[314326277,1708183851911,-613.2552488,0.00055342,120]
[314326278,1708183851920,-500.0,0.00055342,120]
[314326279,1708183851930,-500.0,0.00055342,120]
[314326280,1708183851939,-500.0,0.00055342,120]
[314326281,1708183851949,-758.91,0.00055342,120]
[314326282,1708183851958,-523.89781194,0.00055342,120]
[314326283,1708183851967,-1426.28,0.00055342,120]
[314326284,1708183851979,-500.0,0.00055342,2]
[314326285,1708183851991,-500.0,0.00055342,120]
[314326286,1708183852000,-500.0,0.00055342,2]
[314326287,1708183852010,-150.0,0.00055345,14]
[314326288,1708183852019,-150.0,0.00055346,14]
[314326289,1708183852029,-150.0,0.00055347,14]
[314326290,1708183852039,-150.0,0.0005536,14]
[314326291,1708183852048,-150.0,0.00055367,14]
[314326292,1708183852057,-150.0,0.00055383,14]
[314326293,1708183852066,-150.0,0.00055383,14]
[314326294,1708183852075,-150.0,0.00055393,14]
[314326295,1708183852084,-150.0,0.00055397,14]
[314326296,1708183852093,-25000.0,0.000554,120]
[314326297,1708183852102,-500.0,0.000554,2]
[314326298,1708183852111,-78004.81337648,0.000554,2]
[314326299,1708183852248,-2015.93385349,0.000554,2]
[314326300,1708183852260,-1241.20360058,0.000554,2]
[314326301,1708183852618,-539.58481805,0.000502,120]
[314326302,1708183852629,-1221.69168286,0.000502,120]
[314326303,1708183852641,-266.65830003,0.000502,120]
[314326304,1708183852652,-3310.23,0.000502,120]
[314326305,1708183852778,-1139.16153512,0.000502,120]
[314326306,1708183852787,-658.0,0.0005341,30]
[314326307,1708183852796,-658.0,0.0005396,30]
[314326308,1708183852805,-658.0,0.00054511,30]
[314326309,1708183852815,-500.0,0.00054794,120]
[314326310,1708183852825,-636.2199776,0.00054794,2]
[314326311,1708183852834,-500.0,0.00054794,7]
[314326312,1708183852844,-507.06467811,0.00054794,120]
[314326313,1708183852853,-500.0,0.00054794,120]
[314326314,1708183852862,-500.0,0.00054794,120]
[314326315,1708183852872,-500.0,0.00054794,120]
[314326316,1708183852880,-532.8526136,0.00054794,120]
[314326317,1708183852889,-658.0,0.00055062,30]
[314326318,1708183852899,-500.0,0.00055068,120]
[314326319,1708183852907,-500.0,0.00055068,120]
[314326320,1708183852916,-500.0,0.00055068,7]
[314326321,1708183852926,-429.34883856,0.00055068,120]
[314326322,1708183852935,-500.0,0.00055068,120]
[314326323,1708183852945,-500.0,0.00055068,120]
[314326324,1708183852954,-500.0,0.00055342,120]
[314326325,1708183852964,-500.0,0.00055342,120]
[314326326,1708183852972,-500.0,0.00055342,120]
[314326327,1708183852982,-500.0,0.00055342,7]
[314326328,1708183852993,-500.0,0.00055342,120]
[314326329,1708183853003,-500.0,0.00055342,120]
[314326330,1708183853013,-18738.04916945,0.000554,2]
[314326331,1708183853022,-2065.8663,0.000554,30]
[314326332,1708183853031,-150.0,0.00055409,14]
[314326333,1708183853041,-150.0,0.00055415,14]
[314326334,1708183853051,-173.07248115,0.00055425,120]
[314326335,1708183853063,-150.0,0.00055427,14]
[314326336,1708183853073,-150.0,0.00055429,14]
[314326337,1708183853082,-7046.76543205,0.00055433,30]
[314326338,1708183853092,-150.0,0.0005544,14]
[314326339,1708183853102,-150.0,0.00055444,14]
[314326340,1708183853111,-154.0,0.00055447,120]
[314326341,1708183853120,-150.0,0.00055467,14]
[314326342,1708183853129,-150.0,0.00055469,14]
[314326343,1708183853139,-150.0,0.0005547,14]
[314326344,1708183853148,-300.0,0.00055472,14]
[314326345,1708183853157,-150.0,0.00055494,14]
[314326346,1708183853166,-150.0,0.00055496,14]
[314326347,1708183853175,-150.0,0.00055498,14]
[314326348,1708183853185,-5420.0,0.000555,60]
[314326349,1708183853194,-3000.0,0.000555,102]
[314326350,1708183853203,-231462.8797976,0.000555,6]
[314326351,1708183853235,-1694.05758489,0.000555,6]
[314326352,1708183853437,-166.6,0.00040589,10]
[314326353,1708183853446,-112.84002297,0.00052627,2]
[314326354,1708183853458,-296.9414077,0.00052627,2]
[314326355,1708183853470,-417.71942185,0.00052627,2]
[314326356,1708183853480,-500.0,0.00054794,120]
[314326357,1708183853490,-563.18059403,0.00054794,120]
[314326358,1708183853499,-508.87243371,0.00054794,120]
[314326359,1708183853509,-300.0,0.00055,56]
[314326360,1708183853519,-534.66889325,0.00055068,120]
[314326361,1708183853528,-9295.79274724,0.000555,6]
[314326362,1708183853628,-6496.45994448,0.000555,6]
[314326363,1708183853639,-36214.05221379,0.000555,6]
[314326364,1708183853651,-748361.60707635,0.000555,6]
[314326365,1708183853659,-60000.0,0.000555,120]
[314326366,1708183853669,-150.0,0.00055504,14]
[314326367,1708183853677,-150.0,0.00055505,14]
[314326368,1708183853686,-150.0,0.00055507,14]
[314326369,1708183853695,-150.0,0.00055509,14]
[314326370,1708183853703,-3109.726066,0.0005551,102]
[314326371,1708183853712,-150.0,0.00055518,14]
[314326372,1708183853722,-150.0,0.0005552,14]
[314326373,1708183853731,-150.0,0.00055523,14]
[314326374,1708183853743,-150.0,0.00055524,14]
[314326375,1708183853752,-150.0,0.0005553,14]
[314326376,1708183853762,-150.01,0.00055531,2]
[314326377,1708183853773,-3317.68767406,0.00055531,2]
[314326378,1708183853782,-150.0,0.00055547,14]
[314326379,1708183853791,-150.0,0.00055549,14]
[314326380,1708183853800,-1000.0,0.00055551,120]
[314326381,1708183853809,-150.0,0.00055551,14]
[314326382,1708183853818,-38796.7466267,0.00055561,2]
[314326383,1708183853827,-2227.3606724,0.00055562,2]
[314326384,1708183853843,-150.0,0.00055564,14]
[314326385,1708183853861,-150.0,0.00055565,14]
[314326386,1708183853870,-2000.0,0.0005557,15]
[314326387,1708183853879,-200.0,0.0005557,15]
[314326388,1708183853888,-2000.0,0.0005557,15]
[314326389,1708183853898,-200.0,0.0005557,15]
[314326390,1708183853908,-2152.19798,0.0005557,75]
[314326391,1708183853917,-2489.8229006,0.0005557,2]
[314326392,1708183853927,-181.75766498,0.00055599,55]
[314326393,1708183853937,-314.94,0.000556,2]
[314326394,1708183853947,-658.0,0.00055612,30]
[314326395,1708183853957,-500.0,0.00055616,120]
[314326396,1708183853966,-500.0,0.00055616,120]
[314326397,1708183853976,-523.95547651,0.00055616,120]
[314326398,1708183853985,-500.0,0.00055616,120]
[314326399,1708183853997,-500.0,0.00055616,120]
[314326400,1708183854006,-346.87220357,0.00055616,120]
[314326401,1708183854016,-500.0,0.00055616,120]
[314326402,1708183854025,-500.0,0.00055616,120]
[314326403,1708183854035,-500.0,0.00055616,120]
[314326404,1708183854044,-500.0,0.00055616,120]
[314326405,1708183854053,-474.31635118,0.00055616,120]
[314326406,1708183854063,-500.0,0.00055616,120]
[314326407,1708183854072,-500.0,0.00055616,120]
[314326408,1708183854081,-500.0,0.00055616,120]
[314326409,1708183854090,-500.0,0.00055616,120]
[314326410,1708183854099,-500.0,0.00055616,120]
[314326411,1708183854108,-816.18,0.00055616,120]
[314326412,1708183854117,-500.0,0.00055616,120]
[314326413,1708183854126,-500.0,0.00055616,120]
[314326414,1708183854135,-404.50997935,0.00055616,120]
[314326415,1708183854145,-3767.68,0.00055616,120]
[314326416,1708183854154,-500.0,0.00055616,120]
[314326417,1708183854163,-500.0,0.00055616,120]
[314326418,1708183854172,-500.0,0.00055616,120]
[314326419,1708183854182,-500.0,0.00055616,120]
[314326420,1708183854191,-500.0,0.00055616,120]
[314326421,1708183854200,-500.0,0.00055616,120]
[314326422,1708183854210,-584.73,0.00055616,120]
[314326423,1708183854219,-500.0,0.00055616,120]
[314326424,1708183854229,-500.0,0.00055616,120]
[314326425,1708183854239,-500.0,0.00055616,120]
[314326426,1708183854248,-500.0,0.00055616,120]
[314326427,1708183854258,-778.99,0.00055616,120]
[314326428,1708183854268,-500.0,0.00055616,120]
[314326429,1708183854278,-500.0,0.00055616,7]